bitfinex/quotes_SOLUSD_20250617
["timestamp","ask_amount","ask_price","bid_price","bid_amount"]
[1750140555907,5.1815068,154.26,154.22,5.1815068]
[1750140556210,5.1815068,154.25,154.22,0.14216157]
[1750140556388,26.78,154.24,154.23,5.1815068]
[1750140556719,26.78,154.24,154.22,5.32366837]
[1750140557385,26.78,154.24,154.23,5.46582994]
[1750140558485,26.78,154.24,154.23,50.1154788]
[1750140559309,26.78,154.24,154.23,44.933972]
[1750140559609,5.8,154.26,154.24,18.933972]
[1750140559610,26.76,154.25,154.24,18.933972]
[1750140559809,26.76,154.25,154.24,24.1154788]
[1750140560189,5.8,154.26,154.24,24.1154788]
[1750140560491,5.8,154.26,154.25,5.1815068]
[1750140560492,32.56,154.26,154.25,5.1815068]
[1750140561108,32.56,154.26,154.24,24.1154788]
[1750140561305,39.0425877,154.26,154.24,18.933972]
[1750140561995,32.56,154.26,154.24,18.933972]
[1750140562195,32.56,154.26,154.24,24.1154788]
[1750140562620,32.56,154.26,154.24,18.933972]
[1750140563497,32.56,154.26,154.24,24.1154788]
[1750140563928,39.04279531,154.26,154.24,18.933972]
[1750140564810,32.56,154.26,154.24,24.1154788]
[1750140566398,32.56,154.26,154.23,26.0]
[1750140566598,32.56,154.26,154.24,23.83115566]
[1750140567719,32.56,154.26,154.25,24.1154788]
[1750140567894,32.56,154.26,154.25,18.933972]
[1750140568100,5.8,154.26,154.25,18.933972]
[1750140569432,5.8,154.26,154.25,24.1154788]
[1750140569939,4.33877296,154.31,154.28,26.0]
[1750140569940,10.15877296,154.31,154.28,26.0]
[1750140570117,26.72,154.3,154.28,31.1815068]
[1750140571431,33.20097249,154.3,154.25,0.28432314]
[1750140571725,38.38247929,154.3,154.25,50.1154788]
[1750140571901,38.38247929,154.3,154.27,18.933972]
[1750140573332,33.20097249,154.3,154.27,18.933972]
[1750140573933,33.20091257,154.3,154.27,24.1154788]
[1750140574226,26.72,154.3,154.27,24.1154788]
[1750140574420,26.72,154.29,154.27,24.1154788]
[1750140574619,26.72,154.29,154.27,18.933972]
[1750140574822,26.72,154.29,154.27,24.1154788]
[1750140575136,26.72,154.29,154.28,24.1154788]
[1750140575729,26.72,154.29,154.28,18.933972]
[1750140575924,10.15877296,154.31,154.28,18.933972]
[1750140576132,36.85877296,154.31,154.29,0.14216157]
[1750140576327,10.15877296,154.31,154.29,18.933972]
[1750140576530,36.85877296,154.31,154.29,0.28432314]
[1750140576842,11.66238819,154.3,154.29,26.0]
[1750140577024,38.36238819,154.3,154.29,26.0]
[1750140577225,38.36238819,154.3,154.27,26.0]
[1750140577422,5.1815068,154.29,154.27,26.0]
[1750140577729,31.9015068,154.28,154.27,26.0]
[1750140578237,26.72,154.28,154.27,26.0]
[1750140578425,26.72,154.28,154.27,44.933972]
[1750140578628,10.15877296,154.31,154.28,18.933972]
[1750140578816,4.33877296,154.31,154.3,44.933972]
[1750140579141,36.24027976,154.31,154.29,26.0]
[1750140579855,36.24027976,154.31,154.28,0.28432314]
[1750140580419,9.52027976,154.31,154.28,0.28432314]
[1750140580642,26.72,154.3,154.28,0.28432314]
[1750140581333,26.72,154.3,154.23,22.43038356]
[1750140581334,5.1815068,154.29,154.25,26.0]
[1750140581514,10.81939725,154.31,154.25,26.0]
[1750140581515,31.9015068,154.28,154.26,18.79181043]
[1750140583541,26.72,154.28,154.26,18.79181043]
[1750140583727,31.9015068,154.28,154.26,18.79181043]
[1750140584246,5.1815068,154.27,154.25,0.28432314]
[1750140584553,26.72,154.28,154.25,0.28432314]
[1750140584554,26.7,154.26,154.25,0.28432314]
[1750140584731,26.7,154.26,154.25,6.76730531]
[1750140584937,26.7,154.28,154.27,0.28432314]
[1750140586616,26.7,154.28,154.27,25.41611369]
[1750140587830,4.33877296,154.31,154.27,25.41611369]
[1750140588044,4.33877296,154.31,154.27,30.59762049]
[1750140588219,4.33877296,154.31,154.3,5.1815068]
[1750140588557,4.33877296,154.31,154.3,56.6380788]
[1750140588730,27.16,154.37,154.31,18.933972]
[1750140588916,5.1815068,154.34,154.31,18.933972]
[1750140589241,26.16,154.33,154.31,0.28432314]
[1750140589544,5.1815068,154.32,154.28,18.64964886]
[1750140589718,5.1815068,154.31,154.28,18.64964886]
[1750140589918,27.32,154.33,154.29,0.14216157]
[1750140590160,6.18,154.34,154.29,0.14216157]
[1750140590326,27.34,154.32,154.29,0.14216157]
[1750140590630,32.5215068,154.32,154.29,0.28432314]
[1750140591640,5.1815068,154.31,154.29,0.28432314]
[1750140591847,5.1815068,154.31,154.29,0.14216157]
[1750140592049,5.1815068,154.31,154.29,0.28432314]
[1750140592222,27.6,154.33,154.29,5.46582994]
[1750140592422,27.6,154.33,154.31,0.28432314]
[1750140592629,27.66,154.35,154.31,5.46582994]
[1750140594334,32.8415068,154.35,154.31,0.28432314]
[1750140594658,5.1815068,154.34,154.31,0.28432314]
[1750140594833,32.8215068,154.34,154.31,0.28432314]
[1750140595642,39.30071744,154.34,154.31,0.28432314]
[1750140595840,32.8215068,154.34,154.31,0.28432314]
[1750140596025,27.64,154.34,154.31,0.28432314]
[1750140596830,32.8215068,154.34,154.31,0.28432314]
[1750140597478,27.64,154.34,154.31,0.28432314]
[1750140597764,32.8215068,154.34,154.31,0.28432314]
[1750140598440,34.11925343,154.34,154.31,0.28432314]
[1750140598640,34.11925343,154.34,154.31,0.14216157]
[1750140598641,5.1815068,154.32,154.31,0.14216157]
[1750140598851,5.1815068,154.32,154.31,0.28432314]
[1750140599763,34.11925343,154.34,154.31,0.28432314]
[1750140599933,27.64,154.34,154.31,0.28432314]
[1750140600446,27.64,154.34,154.31,6.76473816]
[1750140601065,32.8215068,154.34,154.31,0.28432314]
[1750140601224,6.47844554,154.36,154.31,6.76476745]
[1750140601429,32.7815068,154.35,154.31,6.76476745]
[1750140601649,27.62,154.35,154.31,11.94627425]
[1750140601975,27.6,154.35,154.31,11.94627425]
[1750140602634,32.7815068,154.35,154.31,6.76476745]
[1750140602836,32.7815068,154.35,154.31,0.28432314]
[1750140603454,34.07888396,154.35,154.31,0.28432314]
[1750140603965,5.1815068,154.34,154.31,0.28432314]
[1750140604145,34.07888396,154.35,154.31,0.28432314]
[1750140604339,39.26039076,154.35,154.31,0.28432314]
[1750140604537,11.66039076,154.35,154.31,0.28432314]
[1750140604735,39.24039076,154.35,154.31,0.28432314]
[1750140604948,5.1815068,154.34,154.31,0.28432314]
[1750140605143,27.58,154.35,154.31,0.28432314]
[1750140605451,6.18,154.37,154.33,5.46582994]
[1750140605638,6.18,154.37,154.33,0.28432314]
[1750140605841,6.18,154.37,154.33,5.46582994]
[1750140606460,0.37666105,154.39,154.35,18.933972]
[1750140606635,0.37666105,154.39,154.35,30.59405991]
[1750140606636,27.93666105,154.39,154.35,30.59405991]
[1750140607033,0.37666105,154.39,154.38,24.1154788]
[1750140607639,0.37666105,154.39,154.38,18.933972]
[1750140608274,0.37666105,154.39,154.38,5.46582994]
[1750140609147,0.37666105,154.39,154.38,0.28432314]
[1750140610863,0.37666105,154.39,154.38,11.94335293]
[1750140614458,0.37666105,154.39,154.38,5.46582994]
[1750140614666,0.37666105,154.39,154.38,11.94335293]
[1750140614865,0.37666105,154.39,154.38,6.76184613]
[1750140615158,0.37666105,154.39,154.38,11.94335293]
[1750140616137,0.37666105,154.39,154.38,6.76184613]
[1750140616341,0.37666105,154.39,154.38,11.94335293]
[1750140616956,0.37666105,154.39,154.38,0.28432314]
[1750140617148,0.37666105,154.39,154.37,25.38345566]
[1750140617559,0.37666105,154.39,154.38,23.97331723]
[1750140617770,0.37666105,154.39,154.38,25.26933342]
[1750140617948,0.37666105,154.39,154.38,30.59300179]
[1750140619472,5.55816785,154.39,154.35,18.64964886]
[1750140619766,34.29392675,154.39,154.36,0.28432314]
[1750140619953,5.1815068,154.38,154.35,18.64964886]
[1750140620265,5.1815068,154.38,154.33,8.14142001]
[1750140620442,5.1815068,154.37,154.34,18.64964886]
[1750140620640,27.81666105,154.39,154.34,18.64964886]
[1750140620843,27.81666105,154.39,154.35,0.14216157]
[1750140620844,32.99816785,154.39,154.35,0.14216157]
[1750140621046,32.99816785,154.39,154.35,0.28432314]
[1750140621374,27.81666105,154.39,154.35,0.28432314]
[1750140621550,32.99816785,154.39,154.35,0.28432314]
[1750140621952,27.81666105,154.39,154.35,11.94430715]
[1750140622181,0.37666105,154.39,154.37,24.1154788]
[1750140622848,0.37666105,154.39,154.37,5.46582994]
[1750140623586,0.37666105,154.39,154.38,25.41149499]
[1750140626976,0.37666105,154.39,154.38,30.59300179]
[1750140629571,0.37666105,154.39,154.38,25.41149499]
[1750140630786,0.37666105,154.39,154.38,30.59300179]
[1750140631880,0.37666105,154.39,154.38,25.41149499]
[1750140632887,0.37666105,154.39,154.38,18.933972]
[1750140633068,5.55816785,154.39,154.36,18.933972]
[1750140633270,5.1815068,154.38,154.36,18.64964886]
[1750140633576,5.1815068,154.38,154.35,18.64964886]
[1750140633767,5.1815068,154.38,154.36,0.14216157]
[1750140633967,5.1815068,154.37,154.36,0.14216157]
[1750140634379,5.1815068,154.37,154.36,0.28432314]
[1750140635184,5.1815068,154.37,154.33,31.1815068]
[1750140635477,5.1815068,154.37,154.35,0.28432314]
[1750140636698,5.1815068,154.38,154.35,0.28432314]
[1750140637998,0.37666105,154.39,154.35,6.76301611]
[1750140638176,5.1815068,154.38,154.35,6.76301611]
[1750140638701,5.55816785,154.39,154.35,11.94452291]
[1750140639194,5.55816785,154.39,154.35,6.76301611]
[1750140639415,0.37666105,154.39,154.36,23.83115566]
[1750140639802,0.37666105,154.39,154.37,0.28432314]
[1750140640798,5.55816785,154.39,154.37,0.28432314]
[1750140640995,5.55816785,154.39,154.36,18.64964886]
[1750140641888,5.1815068,154.38,154.36,18.64964886]
[1750140642089,0.37666105,154.39,154.37,6.76225627]
[1750140642289,0.37666105,154.39,154.38,18.933972]
[1750140642506,0.37666105,154.39,154.38,0.28432314]
[1750140642702,0.37666105,154.39,154.35,6.47873612]
[1750140642908,5.55816785,154.39,154.36,18.64964886]
[1750140643502,5.1815068,154.38,154.36,18.64964886]
[1750140644589,0.37666105,154.39,154.36,18.64964886]
[1750140644784,5.55816785,154.39,154.36,18.64964886]
[1750140645015,5.55816785,154.39,154.36,25.12796641]
[1750140646092,0.37666105,154.39,154.37,0.28432314]
[1750140647224,5.55816785,154.39,154.37,0.28432314]
[1750140649314,0.37666105,154.39,154.37,0.28432314]
[1750140649613,5.55816785,154.39,154.37,0.28432314]
[1750140650407,0.37666105,154.39,154.37,0.28432314]
[1750140651727,5.1815068,154.38,154.32,6.638]
[1750140651908,5.1815068,154.35,154.33,18.64964886]
[1750140652240,5.1815068,154.34,154.32,18.64964886]
[1750140652804,5.1815068,154.33,154.31,18.64964886]
[1750140652989,5.1815068,154.33,154.32,0.28432314]
[1750140653191,5.1815068,154.33,154.31,18.64964886]
[1750140653424,5.1815068,154.33,154.32,0.28432314]
[1750140653724,5.1815068,154.33,154.32,0.14216157]
[1750140653925,5.1815068,154.33,154.29,32.48121325]
[1750140654217,5.1815068,154.31,154.28,18.64964886]
[1750140654400,5.1815068,154.31,154.29,0.28432314]
[1750140654923,5.1815068,154.31,154.28,18.64964886]
[1750140655501,5.1815068,154.31,154.29,0.14216157]
[1750140655704,5.1815068,154.31,154.29,0.28432314]
[1750140656024,32.4015068,154.32,154.29,0.28432314]
[1750140656416,27.22,154.32,154.29,0.28432314]
[1750140656721,32.4015068,154.32,154.29,0.28432314]
[1750140656932,5.1815068,154.3,154.29,0.28432314]
[1750140657219,5.1815068,154.3,154.26,32.48252875]
[1750140657422,5.1815068,154.3,154.28,0.28432314]
[1750140657631,5.1815068,154.29,154.28,0.14216157]
[1750140657925,5.1815068,154.29,154.28,0.28432314]
[1750140658330,5.1815068,154.3,154.28,0.28432314]
[1750140660230,5.1815068,154.29,154.24,6.0844]
[1750140660419,5.1815068,154.28,154.25,18.64964886]
[1750140661137,33.70016383,154.32,154.25,18.64964886]
[1750140661341,5.1815068,154.29,154.25,37.66426409]
[1750140661520,5.1815068,154.29,154.27,0.28432314]
[1750140662526,5.1815068,154.3,154.27,0.28432314]
[1750140663217,5.1815068,154.29,154.27,0.28432314]
[1750140663527,5.1815068,154.28,154.24,18.64964886]
[1750140663729,33.66047142,154.31,154.24,18.64964886]
[1750140663730,5.1815068,154.26,154.24,18.64964886]
[1750140664240,5.1815068,154.25,154.24,0.14216157]
[1750140665333,5.1815068,154.25,154.24,18.64964886]
[1750140665906,5.1815068,154.25,154.24,18.79181043]
[1750140666211,5.1815068,154.25,154.23,26.0]
[1750140666419,5.1815068,154.25,154.2,11.7543068]
[1750140666420,5.1815068,154.24,154.2,18.64964886]
[1750140666608,5.1815068,154.21,154.2,18.64964886]
[1750140666936,5.1815068,154.21,154.16,44.64964886]
[1750140667111,5.1815068,154.2,154.16,18.64964886]
[1750140667428,27.16,154.23,154.16,44.64964886]
[1750140667610,5.1815068,154.21,154.18,18.64964886]
[1750140668011,5.1815068,154.21,154.19,0.14216157]
[1750140668319,5.1815068,154.21,154.19,0.28432314]
[1750140668914,5.1815068,154.21,154.2,18.933972]
[1750140669528,5.1815068,154.22,154.2,18.933972]
[1750140669908,5.1815068,154.21,154.2,18.933972]
[1750140670417,5.1815068,154.21,154.17,18.933972]
[1750140670622,5.1815068,154.2,154.17,18.933972]
[1750140670820,5.1815068,154.2,154.17,25.42025041]
[1750140672037,5.1815068,154.2,154.17,18.933972]
[1750140672237,5.1815068,154.18,154.15,18.64964886]
[1750140672541,5.1815068,154.17,154.16,0.28432314]
[1750140672755,5.1815068,154.17,154.16,0.14216157]
[1750140672910,5.1815068,154.18,154.16,0.28432314]
[1750140673641,5.1815068,154.19,154.17,18.64964886]
[1750140674036,5.1815068,154.18,154.17,18.933972]
[1750140674542,5.1815068,154.18,154.17,0.28432314]
[1750140674922,5.1815068,154.18,154.16,0.28432314]
[1750140675119,27.18,154.19,154.16,0.28432314]
[1750140675120,5.1815068,154.17,154.16,0.28432314]
[1750140680343,6.06,154.26,154.21,18.64964886]
[1750140680540,11.2415068,154.26,154.22,5.1815068]
[1750140681749,11.2415068,154.26,154.22,0.28432314]
[1750140682841,5.1815068,154.23,154.18,1.5236]
[1750140683044,12.54260674,154.26,154.18,0.14216157]
[1750140683045,5.1815068,154.2,154.18,0.14216157]
[1750140683224,5.1815068,154.21,154.18,0.28432314]
[1750140683419,32.3015068,154.22,154.18,18.79181043]
[1750140683628,32.3015068,154.22,154.19,0.14216157]
[1750140683944,32.3015068,154.22,154.2,18.79181043]
[1750140685844,27.1,154.23,154.2,18.79181043]
[1750140686046,5.1815068,154.21,154.19,18.933972]
[1750140687241,5.1815068,154.22,154.19,18.933972]
[1750140687943,5.1815068,154.21,154.19,18.933972]
[1750140688443,33.58386527,154.23,154.12,23.83115566]
[1750140688444,32.2615068,154.2,154.12,23.83115566]
[1750140688646,5.1815068,154.16,154.12,49.83115566]
[1750140688948,5.1815068,154.17,154.13,5.46582994]
[1750140689146,11.2415068,154.19,154.15,0.28432314]
[1750140689333,11.2415068,154.19,154.15,5.46582994]
[1750140689651,5.1815068,154.18,154.15,0.28432314]
[1750140690145,5.1815068,154.17,154.15,0.28432314]
[1750140690655,5.1815068,154.16,154.12,18.64964886]
[1750140690831,5.1815068,154.15,154.12,18.64964886]
[1750140691019,5.1815068,154.15,154.13,0.14216157]
[1750140691224,32.2415068,154.16,154.13,0.14216157]
[1750140691530,32.2415068,154.16,154.13,0.28432314]
[1750140693236,5.1815068,154.14,154.13,0.28432314]
[1750140693827,5.1815068,154.14,154.12,18.64964886]
[1750140695559,5.1815068,154.13,154.09,12.81571872]
[1750140695859,5.1815068,154.12,154.09,0.14216157]
[1750140696337,5.1815068,154.12,154.09,0.28432314]
[1750140696532,5.1815068,154.11,154.08,18.64964886]
[1750140696733,5.1815068,154.11,154.08,6.49007811]
[1750140696944,5.1815068,154.11,154.09,0.14216157]
[1750140697455,5.1815068,154.11,154.09,0.28432314]
[1750140699138,5.1815068,154.11,154.09,0.14216157]
[1750140700060,33.52803818,154.13,154.08,0.28432314]
[1750140700061,5.1815068,154.1,154.08,0.28432314]
[1750140700237,5.1815068,154.09,154.08,0.28432314]
[1750140700438,5.1815068,154.1,154.08,0.28432314]
[1750140707963,6.06,154.12,154.09,18.64964886]
[1750140708142,6.06,154.12,154.09,23.83115566]
[1750140708342,11.2415068,154.12,154.09,18.64964886]
[1750140708555,5.1815068,154.1,154.06,31.1815068]
[1750140708757,5.1815068,154.1,154.07,18.933972]
[1750140708963,12.54875044,154.12,154.07,18.933972]
[1750140709244,5.1815068,154.1,154.07,18.933972]
[1750140711543,5.1815068,154.11,154.07,30.60596027]
[1750140712250,12.54875044,154.12,154.07,30.60596027]
[1750140712568,38.2215068,154.12,154.09,18.933972]
[1750140713642,5.1815068,154.11,154.09,0.28432314]
[1750140714372,38.2215068,154.12,154.09,18.933972]
[1750140715266,11.2415068,154.12,154.09,18.933972]
[1750140721664,6.06,154.12,154.09,30.60507054]
[1750140722884,6.06,154.12,154.09,18.933972]
[1750140723176,11.2415068,154.12,154.09,18.933972]
[1750140723983,6.06,154.12,154.09,18.933972]
[1750140726899,6.06,154.12,154.11,44.64964886]
[1750140727048,5.94,154.19,154.13,26.28432314]
[1750140727254,5.94,154.19,154.11,5.46582994]
[1750140727255,5.94,154.19,154.17,5.1815068]
[1750140727676,5.94,154.19,154.16,24.1154788]
[1750140728259,5.1815068,154.23,154.18,5.46582994]
[1750140728457,7.95852632,154.28,154.22,23.83115566]
[1750140728781,5.1815068,154.26,154.22,23.83115566]
[1750140728955,26.88,154.26,154.23,0.28432314]
[1750140729977,17.60364849,154.27,154.23,0.28432314]
[1750140730181,44.48364849,154.27,154.23,0.28432314]
[1750140730356,17.60364849,154.27,154.23,0.28432314]
[1750140730555,44.48364849,154.27,154.23,5.46582994]
[1750140730774,44.48364849,154.27,154.24,18.64964886]
[1750140730968,17.60364849,154.27,154.24,18.64964886]
[1750140731155,44.48364849,154.27,154.24,18.64964886]
[1750140731574,17.60364849,154.27,154.24,18.64964886]
[1750140732573,5.1815068,154.25,154.22,18.64964886]
[1750140732750,26.88,154.26,154.24,18.64964886]
[1750140733575,5.94,154.27,154.24,5.1815068]
[1750140733757,5.94,154.27,154.24,18.64964886]
[1750140733758,17.60369157,154.27,154.24,18.64964886]
[1750140734156,5.94,154.27,154.24,18.64964886]
[1750140735260,5.94,154.27,154.25,0.28432314]
[1750140737374,6.48098284,154.3,154.26,5.1815068]
[1750140737994,6.48058566,154.31,154.28,18.64964886]
[1750140738197,33.34058566,154.31,154.28,18.64964886]
[1750140738402,5.94,154.32,154.28,23.83115566]
[1750140738558,32.8,154.32,154.28,23.83115566]
[1750140738758,44.46164783,154.32,154.26,6.76660106]
[1750140738990,5.1815068,154.31,154.28,18.933972]
[1750140739290,44.46164783,154.32,154.28,18.933972]
[1750140739495,44.46164783,154.32,154.28,5.46582994]
[1750140740470,32.8,154.32,154.29,18.64964886]
[1750140740687,11.1215068,154.32,154.29,18.64964886]
[1750140740902,5.94,154.32,154.29,18.64964886]
[1750140741095,5.94,154.32,154.29,23.83115566]
[1750140741298,5.94,154.32,154.31,18.933972]
[1750140741496,38.52035691,154.35,154.31,18.933972]
[1750140741696,11.66035691,154.35,154.31,5.46582994]
[1750140742217,11.66035691,154.35,154.31,18.933972]
[1750140742808,11.65990022,154.36,154.31,5.46582994]
[1750140743114,38.51990022,154.36,154.32,18.64964886]
[1750140743714,12.37803894,154.37,154.33,0.28432314]
[1750140744006,44.41954574,154.37,154.33,0.28432314]
[1750140744579,17.55954574,154.37,154.33,0.28432314]
[1750140744793,5.1815068,154.36,154.33,0.28432314]
[1750140746118,11.65989067,154.36,154.31,18.933972]
[1750140746298,11.65989067,154.36,154.31,24.1154788]
[1750140746483,6.47838387,154.36,154.33,0.28432314]
[1750140746804,5.1815068,154.35,154.31,18.64964886]
[1750140747020,5.1815068,154.34,154.32,0.28432314]
[1750140747220,5.1815068,154.35,154.32,0.28432314]
[1750140747395,11.65989067,154.36,154.32,0.28432314]
[1750140747596,6.47838387,154.36,154.32,0.28432314]
[1750140747800,11.65989067,154.36,154.32,5.46582994]
[1750140749229,0.37666105,154.39,154.34,24.1154788]
[1750140749401,0.37666105,154.39,154.36,18.64964886]
[1750140751130,0.37666105,154.39,154.37,5.46582994]
[1750140751435,0.37666105,154.39,154.38,18.64964886]
[1750140752504,12.03532137,154.39,154.35,18.933972]
[1750140752699,6.85381457,154.39,154.35,0.28432314]
[1750140752909,5.55816785,154.39,154.35,0.28432314]
[1750140753215,12.03531206,154.39,154.35,5.46582994]
[1750140754235,6.85380526,154.39,154.35,5.46582994]
[1750140754430,5.1815068,154.38,154.35,0.28432314]
[1750140755009,5.1815068,154.37,154.35,0.28432314]
[1750140755203,32.0215068,154.38,154.35,0.28432314]
[1750140755407,26.84,154.38,154.35,0.28432314]
[1750140755612,32.0215068,154.38,154.35,0.28432314]
[1750140757313,26.84,154.38,154.35,5.46582994]
[1750140758322,12.03531206,154.39,154.35,5.46582994]
[1750140759044,5.1815068,154.38,154.35,0.28432314]
[1750140759929,6.85380526,154.39,154.35,0.28432314]
[1750140760124,5.1815068,154.38,154.35,0.28432314]
[1750140760943,5.1815068,154.36,154.34,18.64964886]
[1750140761146,5.1815068,154.35,154.34,18.64964886]
[1750140761733,23.04656385,154.39,154.34,18.64964886]
[1750140761920,11.66028878,154.35,154.32,0.28432314]
[1750140762122,5.1815068,154.34,154.32,18.933972]
[1750140762461,5.1815068,154.35,154.32,18.64964886]
[1750140762618,5.1815068,154.33,154.32,18.64964886]
[1750140763033,33.31847373,154.36,154.32,18.64964886]
[1750140763226,5.1815068,154.35,154.32,18.64964886]
[1750140764421,5.1815068,154.34,154.32,18.64964886]
[1750140766147,5.1815068,154.33,154.32,18.933972]
[1750140766748,5.1815068,154.34,154.32,18.933972]
[1750140767860,5.1815068,154.35,154.32,18.933972]
[1750140769762,5.1815068,154.34,154.31,1.5619]
[1750140769937,5.1815068,154.32,154.29,18.64964886]
[1750140770138,5.1815068,154.3,154.29,18.64964886]
[1750140770349,5.1815068,154.3,154.26,1.5756]
[1750140770350,5.1815068,154.3,154.24,6.2705]
[1750140770553,32.0215068,154.32,154.24,6.2705]
[1750140770554,5.1815068,154.28,154.24,6.2705]
[1750140770724,5.1815068,154.29,154.25,24.1154788]
[1750140770930,5.1815068,154.29,154.25,18.64964886]
[1750140771134,5.1815068,154.28,154.25,18.64964886]
[1750140771430,5.1815068,154.28,154.26,0.28432314]
[1750140771630,5.1815068,154.28,154.25,18.64964886]
[1750140771837,5.1815068,154.28,154.26,0.28432314]
[1750140772248,5.1815068,154.29,154.26,0.14216157]
[1750140772638,5.1815068,154.29,154.26,0.28432314]
[1750140772848,5.1815068,154.28,154.26,0.28432314]
[1750140773361,5.1815068,154.28,154.25,18.64964886]
[1750140773850,5.1815068,154.27,154.25,18.64964886]
[1750140774237,5.1815068,154.26,154.25,18.64964886]
[1750140775853,32.0215068,154.28,154.25,0.28432314]
[1750140783147,5.1815068,154.27,154.25,0.28432314]
[1750140783352,26.84,154.28,154.25,0.28432314]
[1750140783549,5.1815068,154.27,154.25,0.28432314]
[1750140783939,5.1815068,154.26,154.22,27.5756]
[1750140784134,5.1815068,154.24,154.23,18.64964886]
[1750140784361,5.1815068,154.25,154.23,18.64964886]
[1750140785965,5.1815068,154.24,154.23,18.64964886]
[1750140787366,5.1815068,154.24,154.21,18.933972]
[1750140788366,33.32312508,154.25,154.22,18.933972]
[1750140788367,32.0215068,154.25,154.22,18.933972]
[1750140790363,32.0215068,154.26,154.22,11.94999971]
[1750140790566,26.84,154.26,154.22,11.94999971]
[1750140791654,26.84,154.26,154.22,6.76849291]
[1750140791847,5.1815068,154.27,154.22,11.94999971]
[1750140792048,5.1815068,154.25,154.22,0.28432314]
[1750140793866,5.1815068,154.25,154.22,6.76850427]
[1750140795272,5.1815068,154.25,154.22,0.28432314]
[1750140795453,5.1815068,154.23,154.15,6.0559]
[1750140795654,5.1815068,154.19,154.16,18.64964886]
[1750140797079,32.0215068,154.21,154.17,0.28432314]
[1750140798170,32.0215068,154.21,154.18,18.64964886]
[1750140799680,32.0215068,154.21,154.17,0.28432314]
[1750140799976,5.1815068,154.2,154.17,0.28432314]
[1750140801377,5.1815068,154.19,154.17,18.933972]
[1750140801559,5.1815068,154.19,154.15,43.72449352]
[1750140801876,5.1815068,154.18,154.16,18.64964886]
[1750140804572,33.32481216,154.21,154.17,0.14216157]
[1750140804774,37.9215068,154.22,154.18,5.1815068]
[1750140804951,11.0815068,154.22,154.18,5.1815068]
[1750140805150,37.9215068,154.22,154.19,0.28432314]
[1750140805753,32.74,154.22,154.19,0.28432314]
[1750140805952,37.9215068,154.22,154.19,0.28432314]
[1750140806677,11.0815068,154.22,154.19,0.28432314]
[1750140806882,37.9215068,154.22,154.19,0.28432314]
[1750140808179,12.36223036,154.27,154.21,18.933972]
[1750140808478,32.0215068,154.25,154.21,18.933972]
[1750140808853,5.1815068,154.25,154.21,25.41848689]
[1750140809055,32.0215068,154.25,154.21,25.41848689]
[1750140809249,32.0215068,154.25,154.21,30.59999369]
[1750140809455,26.84,154.25,154.23,18.64964886]
[1750140809761,26.84,154.25,154.21,11.95034483]
[1750140809964,5.1815068,154.26,154.21,11.95034483]
[1750140810161,32.0215068,154.26,154.21,11.95034483]
[1750140810563,5.1815068,154.26,154.23,18.64964886]
[1750140810789,26.84,154.26,154.23,18.64964886]
[1750140810991,11.0615068,154.27,154.23,25.13328308]
[1750140811159,26.84,154.26,154.23,25.13328308]
[1750140811359,11.0615068,154.27,154.23,30.31478988]
[1750140811360,5.88,154.27,154.23,30.31478988]
[1750140811666,37.9015068,154.27,154.23,23.83115566]
[1750140812278,37.9015068,154.27,154.23,30.31494149]
[1750140813281,11.0615068,154.27,154.23,30.31494149]
[1750140813484,37.8815068,154.27,154.23,30.31494149]
[1750140813658,37.8815068,154.27,154.23,25.13343469]
[1750140814880,37.8815068,154.27,154.23,30.31494149]
[1750140816782,32.7,154.27,154.23,30.31494149]
[1750140816967,37.8815068,154.27,154.23,30.31494149]
[1750140817169,5.88,154.27,154.25,23.83115566]
[1750140817578,5.88,154.27,154.26,5.46582994]
[1750140818387,5.88,154.27,154.26,0.28432314]
[1750140818988,5.88,154.27,154.25,25.13244709]
[1750140819301,11.0615068,154.27,154.24,26.0]
[1750140819468,5.1815068,154.26,154.24,26.0]
[1750140819983,5.1815068,154.26,154.23,18.933972]
[1750140825397,37.8815068,154.27,154.23,18.933972]
[1750140826185,32.7,154.27,154.23,18.933972]
[1750140826382,37.8815068,154.27,154.23,18.933972]
[1750140827204,5.1815068,154.26,154.23,18.933972]
[1750140827899,32.7,154.27,154.25,18.64964886]
[1750140828077,26.82,154.27,154.25,18.64964886]
[1750140828494,5.88,154.29,154.27,18.64964886]
[1750140828795,32.68,154.29,154.27,18.64964886]
[1750140830087,5.88,154.29,154.27,18.64964886]
[1750140834504,5.88,154.29,154.27,23.83115566]
[1750140834895,5.88,154.29,154.28,5.46582994]
[1750140835208,31.9815068,154.33,154.28,24.1154788]
[1750140835395,31.9815068,154.33,154.28,5.46582994]